[Event "*** Titled Tuesday Blitz"]
[Site "Chess.com"]
[Date "2020.05.26"]
[Round "8"]
[White "velemajstor767276"]
[Black "UCantHandleDenker"]
[Result "1-0"]
[WhiteElo "2594"]
[BlackElo "2456"]
[TimeControl "180+1"]
[EndTime "11:41:48 PDT"]
[Termination "velemajstor767276 won by resignation"]

1. d4 {[%clk 0:03:00.5]} 1... Nf6 {[%clk 0:02:58.5]} 2. Bg5 {[%clk 0:03:00]}
2... d6 {[%clk 0:02:58]} 3. Nc3 {[%clk 0:02:58]} 3... Nbd7 {[%clk 0:02:57.1]} 4.
e4 {[%clk 0:02:57.3]} 4... e5 {[%clk 0:02:56.8]} 5. Nf3 {[%clk 0:02:46.5]} 5...
Be7 {[%clk 0:02:56.2]} 6. Bc4 {[%clk 0:02:40.7]} 6... O-O {[%clk 0:02:54.9]} 7.
O-O {[%clk 0:02:40.6]} 7... c6 {[%clk 0:02:54.9]} 8. a4 {[%clk 0:02:32.6]} 8...
b6 {[%clk 0:02:54.6]} 9. Qe2 {[%clk 0:02:21.5]} 9... a6 {[%clk 0:02:54.3]} 10.
dxe5 {[%clk 0:02:09.7]} 10... dxe5 {[%clk 0:02:53.2]} 11. Rad1 {[%clk
0:02:04.7]} 11... Qc7 {[%clk 0:02:52.9]} 12. Nh4 {[%clk 0:02:02.6]} 12... Nc5
{[%clk 0:02:37.3]} 13. Nf5 {[%clk 0:01:50.9]} 13... Bxf5 {[%clk 0:02:36.2]} 14.
exf5 {[%clk 0:01:51.8]} 14... b5 {[%clk 0:02:34.4]} 15. Bd3 {[%clk 0:01:12.5]}
15... b4 {[%clk 0:02:26.6]} 16. Bxf6 {[%clk 0:01:09.3]} 16... Bxf6 {[%clk
0:01:57.6]} 17. Ne4 {[%clk 0:01:08.1]} 17... Nxa4 {[%clk 0:01:34.4]} 18. Nxf6+
{[%clk 0:00:46.6]} 18... gxf6 {[%clk 0:01:33.7]} 19. Qg4+ {[%clk 0:00:46.9]}
19... Kh8 {[%clk 0:01:33.5]} 20. Qxb4 {[%clk 0:00:47.8]} 20... Nb6 {[%clk
0:01:33.1]} 21. Qh4 {[%clk 0:00:40.6]} 21... Qe7 {[%clk 0:01:26.4]} 22. Rfe1
{[%clk 0:00:41]} 22... Rg8 {[%clk 0:01:23.2]} 23. f4 {[%clk 0:00:31]} 23... Rg7
{[%clk 0:00:35.4]} 24. fxe5 {[%clk 0:00:30.8]} 24... Qc5+ {[%clk 0:00:32.2]} 25.
Qf2 {[%clk 0:00:27.9]} 25... Qxf2+ {[%clk 0:00:30.3]} 26. Kxf2 {[%clk
0:00:28.8]} 26... fxe5 {[%clk 0:00:30.8]} 27. Rxe5 {[%clk 0:00:28.8]} 27... f6
{[%clk 0:00:29.5]} 28. Re6 {[%clk 0:00:27.5]} 28... Nd5 {[%clk 0:00:29.5]} 29.
g3 {[%clk 0:00:25.5]} 29... a5 {[%clk 0:00:26.9]} 30. Rxc6 {[%clk 0:00:22.5]}
30... Rf8 {[%clk 0:00:26.9]} 31. Be4 {[%clk 0:00:20.6]} 31... Nb4 {[%clk
0:00:27.1]} 32. Rcd6 {[%clk 0:00:18.9]} 32... Re7 {[%clk 0:00:23.4]} 33. Kf3
{[%clk 0:00:15.1]} 33... Rfe8 {[%clk 0:00:22.2]} 34. R1d4 {[%clk 0:00:14.7]}
34... Na2 {[%clk 0:00:18.3]} 35. Rd8 {[%clk 0:00:12.9]} 35... Kg7 {[%clk
0:00:17.2]} 36. Rxe8 {[%clk 0:00:12.9]} 36... Rxe8 {[%clk 0:00:17.8]} 37. Rd7+
{[%clk 0:00:13.2]} 37... Kh6 {[%clk 0:00:18]} 38. Rf7 {[%clk 0:00:11.5]} 38...
Nb4 {[%clk 0:00:15.6]} 39. Rxf6+ {[%clk 0:00:10.7]} 39... Kg7 {[%clk 0:00:16.1]}
40. Rb6 {[%clk 0:00:09.7]} 40... Rd8 {[%clk 0:00:16]} 41. c3 {[%clk 0:00:08.9]}
41... Nd5 {[%clk 0:00:14.1]} 42. Bxd5 {[%clk 0:00:08.5]} 42... Rxd5 {[%clk
0:00:14.4]} 43. Rb7+ {[%clk 0:00:09]} 43... Kf6 {[%clk 0:00:14.2]} 44. g4 {[%clk
0:00:08.7]} 44... h5 {[%clk 0:00:11.8]} 45. h3 {[%clk 0:00:08.9]} 45... Rd1
{[%clk 0:00:11.6]} 46. Rb6+ {[%clk 0:00:07.1]} 46... Kf7 {[%clk 0:00:10.8]} 47.
g5 {[%clk 0:00:06.5]} 47... Rf1+ {[%clk 0:00:10.6]} 48. Ke4 {[%clk 0:00:06.8]}
48... Re1+ {[%clk 0:00:11]} 49. Kd5 {[%clk 0:00:06.9]} 49... Rd1+ {[%clk
0:00:11.3]} 50. Kc4 {[%clk 0:00:06.2]} 50... Rg1 {[%clk 0:00:09]} 51. Rb7+
{[%clk 0:00:06.7]} 51... Ke8 {[%clk 0:00:08.8]} 52. g6 {[%clk 0:00:07.2]} 52...
Rg5 {[%clk 0:00:08.1]} 53. g7 {[%clk 0:00:06]} 53... h4 {[%clk 0:00:05.5]} 54.
f6 {[%clk 0:00:05.9]} 54... a4 {[%clk 0:00:03.6]} 55. Rb8+ {[%clk 0:00:06.1]}
55... Kf7 {[%clk 0:00:03.4]} 56. Rf8+ {[%clk 0:00:06.7]} 56... Ke6 {[%clk
0:00:03.6]} 57. g8=Q+ {[%clk 0:00:07]} 1-0

[Event "*** Titled Tuesday Blitz"]
[Site "Chess.com"]
[Date "2020.05.26"]
[Round "8"]
[White "politeplayer"]
[Black "DrBergerBerger"]
[Result "0-1"]
[WhiteElo "2189"]
[BlackElo "2365"]
[TimeControl "180+1"]
[EndTime "11:41:50 PDT"]
[Termination "DrBergerBerger won by resignation"]

1. e4 {[%clk 0:03:00.9]} 1... e6 {[%clk 0:02:59.7]} 2. d4 {[%clk 0:02:59]} 2...
d5 {[%clk 0:03:00.1]} 3. exd5 {[%clk 0:02:59.4]} 3... exd5 {[%clk 0:02:59.8]} 4.
Nf3 {[%clk 0:02:59.7]} 4... Nf6 {[%clk 0:03:00.3]} 5. Bd3 {[%clk 0:02:59.1]}
5... c5 {[%clk 0:02:59.8]} 6. O-O {[%clk 0:02:57.5]} 6... c4 {[%clk 0:02:59]} 7.
Re1+ {[%clk 0:02:57.8]} 7... Be7 {[%clk 0:02:59.4]} 8. Be2 {[%clk 0:02:58.4]}
8... O-O {[%clk 0:03:00]} 9. Bf4 {[%clk 0:02:57.2]} 9... Nc6 {[%clk 0:02:57]}
10. b3 {[%clk 0:02:54.8]} 10... cxb3 {[%clk 0:02:55]} 11. axb3 {[%clk
0:02:54.4]} 11... Bf5 {[%clk 0:02:52.8]} 12. c4 {[%clk 0:02:52.3]} 12... Bb4
{[%clk 0:02:45.4]} 13. Rf1 {[%clk 0:02:46.9]} 13... Re8 {[%clk 0:02:36.6]} 14.
Ne5 {[%clk 0:02:39.5]} 14... dxc4 {[%clk 0:02:12.4]} 15. Bxc4 {[%clk 0:02:39.1]}
15... Be6 {[%clk 0:02:08.9]} 16. Nxc6 {[%clk 0:01:59.1]} 16... bxc6 {[%clk
0:02:08]} 17. Bg5 {[%clk 0:01:54.6]} 17... h6 {[%clk 0:02:02.9]} 18. Bh4 {[%clk
0:01:53.4]} 18... Bxc4 {[%clk 0:01:49]} 19. bxc4 {[%clk 0:01:51.2]} 19... Re4
{[%clk 0:01:47.5]} 20. Bg3 {[%clk 0:01:35.8]} 20... Rxd4 {[%clk 0:01:41.1]} 21.
Qa4 {[%clk 0:01:34.1]} 21... c5 {[%clk 0:01:32.2]} 22. Be5 {[%clk 0:01:33]}
22... Rxc4 {[%clk 0:01:26.4]} 23. Qc6 {[%clk 0:01:26.5]} 23... Qc8 {[%clk
0:01:01.7]} 24. Qxc8+ {[%clk 0:01:23.3]} 24... Rxc8 {[%clk 0:01:00.9]} 25. Bxf6
{[%clk 0:01:22.5]} 25... gxf6 {[%clk 0:01:00.7]} 26. Rxa7 {[%clk 0:01:22.7]}
26... Re8 {[%clk 0:00:54.6]} 27. Na3 {[%clk 0:01:18.8]} 27... Bxa3 {[%clk
0:00:42.9]} 28. Rxa3 {[%clk 0:01:17.6]} 28... Re2 {[%clk 0:00:42.5]} 29. Rf3
{[%clk 0:01:11.5]} 29... Kg7 {[%clk 0:00:41.4]} 30. Rg3+ {[%clk 0:01:11.4]}
30... Kf8 {[%clk 0:00:41.1]} 31. Rd1 {[%clk 0:01:07.3]} 31... Rd4 {[%clk
0:00:38.1]} 32. Rc1 {[%clk 0:01:03.3]} 32... Red2 {[%clk 0:00:32.1]} 33. h3
{[%clk 0:00:56.8]} 33... Rd1+ {[%clk 0:00:30.7]} 34. Rxd1 {[%clk 0:00:57.2]}
34... Rxd1+ {[%clk 0:00:31.3]} 35. Kh2 {[%clk 0:00:57.8]} 35... Rd5 {[%clk
0:00:31.3]} 36. Rc3 {[%clk 0:00:54.3]} 36... h5 {[%clk 0:00:28.7]} 37. Kg3
{[%clk 0:00:53.7]} 37... Ke7 {[%clk 0:00:28.8]} 38. Kf4 {[%clk 0:00:52.4]} 38...
Kd6 {[%clk 0:00:24.7]} 39. g4 {[%clk 0:00:50.8]} 39... hxg4 {[%clk 0:00:23.9]}
40. Kxg4 {[%clk 0:00:51.1]} 40... Ke5 {[%clk 0:00:22.3]} 41. Rf3 {[%clk
0:00:41.9]} 41... c4 {[%clk 0:00:14.5]} 42. h4 {[%clk 0:00:34.6]} 42... Rd4+
{[%clk 0:00:10.4]} 43. Kg3 {[%clk 0:00:22]} 43... Rd3 {[%clk 0:00:10.2]} 44.
Rxd3 {[%clk 0:00:14.7]} 44... cxd3 {[%clk 0:00:11.1]} 45. Kf3 {[%clk 0:00:13.6]}
45... Kf5 {[%clk 0:00:10.9]} 46. Ke3 {[%clk 0:00:12.8]} 46... Kg4 {[%clk
0:00:11.2]} 47. Kxd3 {[%clk 0:00:12.5]} 47... Kxh4 {[%clk 0:00:11.7]} 48. Ke4
{[%clk 0:00:12.3]} 48... Kg4 {[%clk 0:00:09.3]} 49. f3+ {[%clk 0:00:07.1]} 49...
Kg5 {[%clk 0:00:09.3]} 50. f4+ {[%clk 0:00:05.6]} 50... Kg4 {[%clk 0:00:09.1]}
51. f5 {[%clk 0:00:04.5]} 51... Kg5 {[%clk 0:00:08.8]} 52. Ke3 {[%clk 0:00:04]}
52... Kxf5 {[%clk 0:00:09.7]} 53. Kf3 {[%clk 0:00:04.5]} 53... Ke5 {[%clk
0:00:10.1]} 54. Ke3 {[%clk 0:00:04.6]} 54... f5 {[%clk 0:00:11]} 55. Kf3 {[%clk
0:00:04.9]} 55... f4 {[%clk 0:00:11.9]} 56. Ke2 {[%clk 0:00:04.9]} 56... Ke4
{[%clk 0:00:12.5]} 57. Kf2 {[%clk 0:00:05.4]} 57... f3 {[%clk 0:00:13.4]} 58.
Ke1 {[%clk 0:00:05.3]} 58... Ke3 {[%clk 0:00:14.3]} 59. Kf1 {[%clk 0:00:05.5]}
59... f2 {[%clk 0:00:14.4]} 0-1

[Event "*** Titled Tuesday Blitz"]
[Site "Chess.com"]
[Date "2020.05.26"]
[Round "8"]
[White "The_Machine04"]
[Black "PIwan"]
[Result "0-1"]
[WhiteElo "2285"]
[BlackElo "2508"]
[TimeControl "180+1"]
[EndTime "11:41:50 PDT"]
[Termination "PIwan won by resignation"]

1. d4 {[%clk 0:03:00.9]} 1... d5 {[%clk 0:02:50.6]} 2. Bf4 {[%clk 0:03:00.4]}
2... e6 {[%clk 0:02:50]} 3. e3 {[%clk 0:03:00.4]} 3... Bd6 {[%clk 0:02:50.2]} 4.
Bg3 {[%clk 0:03:00.5]} 4... Nf6 {[%clk 0:02:49.6]} 5. Bd3 {[%clk 0:02:59.5]}
5... c5 {[%clk 0:02:49.7]} 6. c3 {[%clk 0:02:59.7]} 6... Qc7 {[%clk 0:02:49.3]}
7. Nd2 {[%clk 0:02:57.1]} 7... Nbd7 {[%clk 0:02:49.3]} 8. Bxd6 {[%clk
0:02:56.8]} 8... Qxd6 {[%clk 0:02:49.4]} 9. f4 {[%clk 0:02:57.5]} 9... cxd4
{[%clk 0:02:45.5]} 10. cxd4 {[%clk 0:02:57.2]} 10... O-O {[%clk 0:02:42.8]} 11.
Ngf3 {[%clk 0:02:56.3]} 11... a5 {[%clk 0:02:35.5]} 12. Ne5 {[%clk 0:02:54.9]}
12... b6 {[%clk 0:02:34.6]} 13. Qe2 {[%clk 0:02:53.9]} 13... Bb7 {[%clk
0:02:17]} 14. O-O {[%clk 0:02:52.6]} 14... Ne4 {[%clk 0:02:15.3]} 15. Nxd7
{[%clk 0:02:43.1]} 15... Qxd7 {[%clk 0:02:14.5]} 16. Nxe4 {[%clk 0:02:43.1]}
16... dxe4 {[%clk 0:02:14.4]} 17. Bb5 {[%clk 0:02:43.6]} 17... Qd5 {[%clk
0:02:09.1]} 18. Rfc1 {[%clk 0:02:40]} 18... Rfc8 {[%clk 0:02:04.4]} 19. Bc4
{[%clk 0:02:31.8]} 19... Qd7 {[%clk 0:01:51.1]} 20. Bb5 {[%clk 0:02:31.4]} 20...
Bc6 {[%clk 0:01:51.3]} 21. a4 {[%clk 0:02:24.9]} 21... Rc7 {[%clk 0:01:46.5]}
22. Rc3 {[%clk 0:02:15.6]} 22... Bxb5 {[%clk 0:01:30.1]} 23. Qxb5 {[%clk
0:02:06.6]} 23... Qxb5 {[%clk 0:01:23.5]} 24. axb5 {[%clk 0:02:07.5]} 24... Rxc3
{[%clk 0:01:23.7]} 25. bxc3 {[%clk 0:02:08.1]} 25... Rc8 {[%clk 0:01:24.2]} 26.
Ra3 {[%clk 0:02:07.2]} 26... Rc4 {[%clk 0:01:21.4]} 27. Kf2 {[%clk 0:02:07]}
27... Kf8 {[%clk 0:01:14.6]} 28. Ke2 {[%clk 0:02:07]} 28... Ke7 {[%clk 0:01:13]}
29. Kd2 {[%clk 0:02:07.3]} 29... Kd6 {[%clk 0:01:11.3]} 30. Kc2 {[%clk
0:02:05.8]} 30... f6 {[%clk 0:00:53.4]} 31. Ra1 {[%clk 0:01:52.4]} 31... Kd5
{[%clk 0:00:52]} 32. g3 {[%clk 0:01:43.2]} 32... e5 {[%clk 0:00:36.1]} 33. fxe5
{[%clk 0:01:42]} 33... fxe5 {[%clk 0:00:36]} 34. Rf1 {[%clk 0:01:28.2]} 34...
exd4 {[%clk 0:00:30.5]} 35. exd4 {[%clk 0:01:29.1]} 35... Rc7 {[%clk 0:00:30.1]}
36. Kb3 {[%clk 0:01:25.8]} 36... e3 {[%clk 0:00:28.9]} 37. Kc2 {[%clk
0:01:20.9]} 37... Kc4 {[%clk 0:00:16.2]} 38. d5 {[%clk 0:00:51.7]} 38... Kxd5
{[%clk 0:00:12]} 39. Kd3 {[%clk 0:00:50.2]} 39... Re7 {[%clk 0:00:12]} 40. Rf5+
{[%clk 0:00:47.1]} 40... Re5 {[%clk 0:00:11.3]} 41. c4+ {[%clk 0:00:39.1]} 41...
Kd6 {[%clk 0:00:09.8]} 42. Rxe5 {[%clk 0:00:16.3]} 42... Kxe5 {[%clk 0:00:10.7]}
43. Kxe3 {[%clk 0:00:16.7]} 43... a4 {[%clk 0:00:11.1]} 44. Kd3 {[%clk
0:00:16.7]} 44... a3 {[%clk 0:00:11.5]} 45. Kc3 {[%clk 0:00:14.7]} 45... a2
{[%clk 0:00:11.8]} 46. Kb2 {[%clk 0:00:14.6]} 46... Kd4 {[%clk 0:00:12.3]} 47.
Kxa2 {[%clk 0:00:12]} 47... Kxc4 {[%clk 0:00:12.8]} 48. Ka3 {[%clk 0:00:11.8]}
48... Kxb5 {[%clk 0:00:13.7]} 49. Kb3 {[%clk 0:00:12.1]} 49... Kc5 {[%clk
0:00:14]} 50. Kc3 {[%clk 0:00:12]} 50... b5 {[%clk 0:00:13.8]} 51. Kb3 {[%clk
0:00:11.8]} 51... g5 {[%clk 0:00:13.7]} 52. h4 {[%clk 0:00:10.5]} 52... g4
{[%clk 0:00:13.6]} 53. h5 {[%clk 0:00:10.7]} 53... Kd4 {[%clk 0:00:11.8]} 54.
Kb4 {[%clk 0:00:10.5]} 54... Ke4 {[%clk 0:00:12.4]} 55. Kxb5 {[%clk 0:00:11.4]}
55... Kf3 {[%clk 0:00:13.2]} 56. Kc6 {[%clk 0:00:12.3]} 56... Kxg3 {[%clk
0:00:14.1]} 57. Kd6 {[%clk 0:00:13]} 57... Kh4 {[%clk 0:00:14.4]} 58. Ke6 {[%clk
0:00:13.9]} 58... Kxh5 {[%clk 0:00:14.8]} 59. Kf5 {[%clk 0:00:14.8]} 59... Kh4
{[%clk 0:00:14.4]} 60. Kf6 {[%clk 0:00:14.6]} 60... h5 {[%clk 0:00:15.3]} 61.
Kg7 {[%clk 0:00:15.5]} 61... g3 {[%clk 0:00:15.8]} 62. Kh7 {[%clk 0:00:16.4]}
62... g2 {[%clk 0:00:16.7]} 0-1

[Event "*** Titled Tuesday Blitz"]
[Site "Chess.com"]
[Date "2020.05.26"]
[Round "8"]
[White "Zmeeed63"]
[Black "Irochka83"]
[Result "0-1"]
[WhiteElo "2233"]
[BlackElo "2394"]
[TimeControl "180+1"]
[EndTime "11:41:51 PDT"]
[Termination "Irochka83 won by resignation"]

1. d4 {[%clk 0:02:50.9]} 1... d5 {[%clk 0:02:57.7]} 2. c4 {[%clk 0:02:51]} 2...
dxc4 {[%clk 0:02:58.3]} 3. Nf3 {[%clk 0:02:46.2]} 3... Nf6 {[%clk 0:02:57.8]} 4.
e3 {[%clk 0:02:46.2]} 4... e6 {[%clk 0:02:58.4]} 5. Bxc4 {[%clk 0:02:46.5]} 5...
c5 {[%clk 0:02:59]} 6. O-O {[%clk 0:02:44.3]} 6... Nc6 {[%clk 0:02:59.6]} 7. Nc3
{[%clk 0:02:37.8]} 7... a6 {[%clk 0:02:59.6]} 8. a4 {[%clk 0:02:13.5]} 8... Be7
{[%clk 0:03:00]} 9. dxc5 {[%clk 0:02:09.4]} 9... Qxd1 {[%clk 0:02:47.9]} 10.
Rxd1 {[%clk 0:02:10.3]} 10... Bxc5 {[%clk 0:02:48.4]} 11. b3 {[%clk 0:01:57.2]}
11... b6 {[%clk 0:02:48.1]} 12. Ba3 {[%clk 0:01:56.9]} 12... Bb7 {[%clk
0:02:48.7]} 13. Bxc5 {[%clk 0:01:55.8]} 13... bxc5 {[%clk 0:02:49.6]} 14. Rd6
{[%clk 0:01:44.9]} 14... Ke7 {[%clk 0:02:44.8]} 15. Rad1 {[%clk 0:01:44.7]}
15... Rhc8 {[%clk 0:01:39.4]} 16. e4 {[%clk 0:01:43]} 16... Rc7 {[%clk
0:01:27.8]} 17. e5 {[%clk 0:01:35.8]} 17... Ng4 {[%clk 0:01:27.4]} 18. Ne4
{[%clk 0:00:28.3]} 18... Ncxe5 {[%clk 0:01:22.3]} 19. Nxe5 {[%clk 0:00:29.2]}
19... Nxe5 {[%clk 0:01:20.4]} 20. Ng5 {[%clk 0:00:28.5]} 20... Nxc4 {[%clk
0:00:33.9]} 21. bxc4 {[%clk 0:00:29.4]} 21... Bd5 {[%clk 0:00:33]} 22. Nxf7
{[%clk 0:00:21]} 22... Bxc4 {[%clk 0:00:23.3]} 23. Ne5 {[%clk 0:00:20.2]} 23...
Bd5 {[%clk 0:00:20.9]} 24. Rb6 {[%clk 0:00:17.2]} 24... c4 {[%clk 0:00:19]} 25.
Rc1 {[%clk 0:00:12.5]} 25... c3 {[%clk 0:00:19.1]} 26. Nd3 {[%clk 0:00:11]}
26... Be4 {[%clk 0:00:13.3]} 27. Nb4 {[%clk 0:00:08.7]} 27... a5 {[%clk
0:00:12.1]} 28. Na6 {[%clk 0:00:07.7]} 28... Rc4 {[%clk 0:00:07.7]} 29. f3
{[%clk 0:00:05.3]} 29... Bc6 {[%clk 0:00:02.7]} 30. Nb8 {[%clk 0:00:04.7]} 30...
Rxb8 {[%clk 0:00:02.3]} 31. Rxb8 {[%clk 0:00:03.8]} 31... Bxa4 {[%clk 0:00:03]}
32. Rb7+ {[%clk 0:00:03.5]} 32... Kf6 {[%clk 0:00:03.3]} 33. Ra7 {[%clk
0:00:03.8]} 33... Rc5 {[%clk 0:00:03.9]} 34. Kf2 {[%clk 0:00:03.4]} 34... c2
{[%clk 0:00:04.4]} 35. Ke3 {[%clk 0:00:03.7]} 35... Rd5 {[%clk 0:00:05]} 36. Rc7
{[%clk 0:00:02.9]} 36... Rd1 {[%clk 0:00:04.8]} 37. R7xc2 {[%clk 0:00:03.2]}
37... Bxc2 {[%clk 0:00:05.7]} 38. Rxc2 {[%clk 0:00:04.1]} 38... Ra1 {[%clk
0:00:05.2]} 39. Rc6 {[%clk 0:00:03.6]} 39... a4 {[%clk 0:00:05.1]} 40. Ra6
{[%clk 0:00:04.1]} 40... Ra2 {[%clk 0:00:05.6]} 41. g4 {[%clk 0:00:03.3]} 41...
a3 {[%clk 0:00:04.5]} 42. h4 {[%clk 0:00:03.5]} 42... h6 {[%clk 0:00:04.6]} 43.
Kf4 {[%clk 0:00:03.7]} 43... Ra1 {[%clk 0:00:03.5]} 44. g5+ {[%clk 0:00:03.7]}
44... hxg5+ {[%clk 0:00:04.4]} 45. hxg5+ {[%clk 0:00:04.6]} 45... Kf7 {[%clk
0:00:04.6]} 46. Ke5 {[%clk 0:00:05]} 46... Re1+ {[%clk 0:00:04]} 47. Kf4 {[%clk
0:00:05.1]} 47... Ra1 {[%clk 0:00:03.7]} 48. Ke5 {[%clk 0:00:04.9]} 48... a2
{[%clk 0:00:04.2]} 49. g6+ {[%clk 0:00:04.8]} 49... Ke7 {[%clk 0:00:03.9]} 50.
Rxe6+ {[%clk 0:00:04.9]} 50... Kd7 {[%clk 0:00:04.1]} 51. Ra6 {[%clk 0:00:05.8]}
51... Re1+ {[%clk 0:00:03.5]} 0-1

[Event "*** Titled Tuesday Blitz"]
[Site "Chess.com"]
[Date "2020.05.26"]
[Round "8"]
[White "TST2014"]
[Black "francyIM"]
[Result "0-1"]
[WhiteElo "2528"]
[BlackElo "2709"]
[TimeControl "180+1"]
[EndTime "11:41:52 PDT"]
[Termination "francyIM won by resignation"]

1. d4 {[%clk 0:03:00.9]} 1... Nf6 {[%clk 0:02:58.3]} 2. c4 {[%clk 0:03:00.6]}
2... e6 {[%clk 0:02:58.3]} 3. Nf3 {[%clk 0:03:00.3]} 3... b6 {[%clk 0:02:57.5]}
4. a3 {[%clk 0:03:00.1]} 4... Bb7 {[%clk 0:02:57.3]} 5. Nc3 {[%clk 0:03:00]}
5... d5 {[%clk 0:02:53.9]} 6. cxd5 {[%clk 0:02:58]} 6... Nxd5 {[%clk 0:02:42.4]}
7. e3 {[%clk 0:02:57]} 7... Be7 {[%clk 0:02:41.6]} 8. Bb5+ {[%clk 0:02:56.5]}
8... c6 {[%clk 0:02:40]} 9. Bd3 {[%clk 0:02:56.4]} 9... Nd7 {[%clk 0:02:39.9]}
10. e4 {[%clk 0:02:51.6]} 10... Nxc3 {[%clk 0:02:39.4]} 11. bxc3 {[%clk
0:02:52.3]} 11... O-O {[%clk 0:02:39.1]} 12. O-O {[%clk 0:02:51.4]} 12... c5
{[%clk 0:02:38.8]} 13. Bf4 {[%clk 0:02:45.9]} 13... Rc8 {[%clk 0:02:32]} 14. d5
{[%clk 0:02:29.8]} 14... c4 {[%clk 0:02:21.8]} 15. Bc2 {[%clk 0:02:24.6]} 15...
exd5 {[%clk 0:02:14.7]} 16. exd5 {[%clk 0:02:22.6]} 16... Nc5 {[%clk 0:02:11.6]}
17. d6 {[%clk 0:02:11.8]} 17... Bf6 {[%clk 0:02:09.9]} 18. Nd4 {[%clk
0:02:06.3]} 18... Ba6 {[%clk 0:02:01.3]} 19. Bf5 {[%clk 0:01:51.8]} 19... Bxd4
{[%clk 0:01:30.5]} 20. Qxd4 {[%clk 0:01:39.4]} 20... Nb3 {[%clk 0:01:30.2]} 21.
Qe4 {[%clk 0:01:28.3]} 21... Nxa1 {[%clk 0:01:28.6]} 22. Bxc8 {[%clk 0:01:12.6]}
22... Qxc8 {[%clk 0:01:26]} 23. Rxa1 {[%clk 0:01:11.6]} 23... Qd7 {[%clk
0:01:22.3]} 24. Qe7 {[%clk 0:01:03.4]} 24... Rd8 {[%clk 0:01:14.9]} 25. Re1
{[%clk 0:00:56]} 25... f6 {[%clk 0:01:13.4]} 26. h4 {[%clk 0:00:47.1]} 26... Bb5
{[%clk 0:01:08.3]} 27. h5 {[%clk 0:00:45]} 27... Re8 {[%clk 0:01:05.6]} 28.
Qxe8+ {[%clk 0:00:38.2]} 28... Qxe8 {[%clk 0:01:04]} 29. Rxe8+ {[%clk
0:00:38.7]} 29... Bxe8 {[%clk 0:01:04.6]} 30. g4 {[%clk 0:00:34.8]} 30... Kf7
{[%clk 0:01:04.5]} 31. f3 {[%clk 0:00:31.5]} 31... Ke6 {[%clk 0:01:01.4]} 32.
Kf2 {[%clk 0:00:31.4]} 32... g5 {[%clk 0:00:55]} 33. hxg6 {[%clk 0:00:26.6]}
33... hxg6 {[%clk 0:00:53]} 34. Ke3 {[%clk 0:00:25.7]} 34... Kd5 {[%clk
0:00:46.5]} 35. Bg3 {[%clk 0:00:20.4]} 35... Bd7 {[%clk 0:00:43.9]} 36. Kd2
{[%clk 0:00:17.9]} 36... Ke6 {[%clk 0:00:42.3]} 37. Ke3 {[%clk 0:00:17.8]} 37...
Kd5 {[%clk 0:00:41.9]} 38. Kd2 {[%clk 0:00:17.9]} 38... f5 {[%clk 0:00:42]} 39.
gxf5 {[%clk 0:00:16.4]} 39... Bxf5 {[%clk 0:00:41.6]} 40. Ke3 {[%clk 0:00:16.7]}
40... Kc5 {[%clk 0:00:41.5]} 41. Be5 {[%clk 0:00:15.2]} 41... Kc6 {[%clk
0:00:40.2]} 42. Kf4 {[%clk 0:00:14.1]} 42... Kd5 {[%clk 0:00:39.7]} 43. Bd4
{[%clk 0:00:10.5]} 43... Kxd6 {[%clk 0:00:39.5]} 44. Kg5 {[%clk 0:00:10.9]}
44... Kc6 {[%clk 0:00:39.4]} 45. f4 {[%clk 0:00:11.1]} 45... Kb5 {[%clk
0:00:39.5]} 46. Be5 {[%clk 0:00:09.3]} 46... Ka4 {[%clk 0:00:39.3]} 47. Bb8
{[%clk 0:00:09.2]} 47... Kxa3 {[%clk 0:00:39.2]} 48. Bxa7 {[%clk 0:00:09.4]}
48... Kb3 {[%clk 0:00:37]} 49. Bxb6 {[%clk 0:00:09.5]} 49... Kxc3 {[%clk
0:00:37.2]} 50. Kf6 {[%clk 0:00:08.7]} 50... Kd3 {[%clk 0:00:36.9]} 51. Ke5
{[%clk 0:00:07]} 51... c3 {[%clk 0:00:37.2]} 52. Bc5 {[%clk 0:00:07.3]} 52... c2
{[%clk 0:00:36.8]} 53. Ba3 {[%clk 0:00:07.4]} 53... Kd2 {[%clk 0:00:37.2]} 54.
Kd4 {[%clk 0:00:05.1]} 54... c1=Q {[%clk 0:00:36.7]} 55. Bxc1+ {[%clk
0:00:05.7]} 55... Kxc1 {[%clk 0:00:37.6]} 56. Kc3 {[%clk 0:00:05.9]} 56... Kd1
{[%clk 0:00:37.6]} 57. Kd4 {[%clk 0:00:06.2]} 57... Ke2 {[%clk 0:00:38.5]} 58.
Ke5 {[%clk 0:00:06.4]} 58... Kf3 {[%clk 0:00:38.9]} 59. Kd4 {[%clk 0:00:04.2]}
59... Kxf4 {[%clk 0:00:39.8]} 60. Kc3 {[%clk 0:00:04.7]} 60... g5 {[%clk
0:00:40.1]} 61. Kd2 {[%clk 0:00:05.2]} 61... Kf3 {[%clk 0:00:40.1]} 62. Ke1
{[%clk 0:00:05.6]} 62... Bd3 {[%clk 0:00:40.6]} 63. Kd2 {[%clk 0:00:03.8]} 63...
g4 {[%clk 0:00:41.5]} 64. Kxd3 {[%clk 0:00:04.3]} 64... g3 {[%clk 0:00:42]} 65.
Kd4 {[%clk 0:00:05.2]} 65... g2 {[%clk 0:00:42.4]} 66. Ke5 {[%clk 0:00:06.1]}
66... g1=Q {[%clk 0:00:42.9]} 67. Kf5 {[%clk 0:00:07]} 67... Qc5+ {[%clk
0:00:43.1]} 68. Ke6 {[%clk 0:00:07.2]} 68... Ke4 {[%clk 0:00:43.7]} 69. Kf7
{[%clk 0:00:07.7]} 69... Qb6 {[%clk 0:00:43.1]} 70. Ke7 {[%clk 0:00:07.8]} 70...
Ke5 {[%clk 0:00:43.4]} 71. Kd7 {[%clk 0:00:08.3]} 71... Qb7+ {[%clk 0:00:43.7]}
72. Ke8 {[%clk 0:00:08.4]} 72... Ke6 {[%clk 0:00:44.2]} 0-1